fUST/lending_fUST_20240709
["ID","MTS","AMOUNT","RATE_DAILY","PERIOD"]
[331573340,1720528240093,-272.90478194,0.00024723,2]
[331573341,1720528240103,-162.770289,0.00025107,2]
[331573342,1720528240113,-428.24738691,0.00025229,2]
[331573343,1720528240123,-500.0,0.00025229,2]
[331573344,1720528240133,-763.79636746,0.00025229,2]
[331573345,1720528240143,-225.71833691,0.00025229,2]
[331573346,1720528240152,-6863.87493251,0.00025229,2]
[331573347,1720528240163,-189.22156458,0.00025229,2]
[331573348,1720528240173,-166.929452,0.00025241,2]
[331573349,1720528240183,-3043.02,0.00025491,3]
[331573350,1720528240192,-3466.29,0.00025491,3]
[331573351,1720528240202,-2888.57,0.00025491,3]
[331573352,1720528240212,-500.0,0.000255,2]
[331573353,1720528240222,-500.0,0.000255,2]
[331573354,1720528240232,-500.0,0.000255,2]
[331573355,1720528240242,-500.0,0.000255,2]
[331573356,1720528240251,-549.32993586,0.000255,2]
[331573357,1720528240261,-249.64870293,0.000255,2]
[331573358,1720528240271,-500.0,0.000255,2]
[331573359,1720528240284,-500.0,0.000255,2]
[331573360,1720528240294,-500.0,0.000255,2]
[331573361,1720528240303,-500.0,0.000255,2]
[331573362,1720528240314,-100069.52116256,0.00025501,2]
[331573363,1720528240324,-250.0,0.00025524,2]
[331573364,1720528240333,-780.52486934,0.00026574,2]
[331573365,1720528240344,-166.929452,0.00026852,2]
[331573366,1720528240355,-3830.59093643,0.00027083,2]
[331573367,1720528240365,-2000.0,0.00027084,2]
[331573368,1720528240376,-225.76386745,0.00027173,2]
[331573369,1720528240386,-270.12333098,0.00027173,2]
[331573370,1720528240396,-500.0,0.00027173,2]
[331573371,1720528240406,-500.0,0.00027173,2]
[331573372,1720528240416,-500.0,0.00027173,2]
[331573373,1720528240427,-204.11144005,0.00027173,2]
[331573374,1720528240436,-500.0,0.00027173,2]
[331573375,1720528240447,-500.0,0.00027173,2]
[331573376,1720528240457,-379.09451519,0.00027173,2]
[331573377,1720528240467,-500.0,0.00027173,2]
[331573378,1720528240477,-500.0,0.00027173,2]
[331573379,1720528240487,-500.0,0.00027173,2]
[331573380,1720528240496,-500.0,0.00027173,2]
[331573381,1720528240506,-500.0,0.00027173,2]
[331573382,1720528240515,-203009.969186,0.00027174,3]
[331573383,1720528240525,-30000.0,0.00027184,2]
[331573384,1720528240535,-244.09639164,0.00027184,2]
[331573385,1720528240544,-1065.65690458,0.00027194,2]
[331573386,1720528240554,-3529.11519136,0.00027194,2]
[331573387,1720528240563,-158.13258682,0.00027194,2]
[331573388,1720528240573,-735.499496,0.00027195,2]
[331573389,1720528240583,-2168.00663553,0.0002722,2]
[331573390,1720528240593,-3000.0,0.000273,2]
[331573391,1720528240603,-3000.0,0.0002731,2]
[331573392,1720528240612,-3000.0,0.0002732,2]
[331573393,1720528240622,-3000.0,0.0002733,2]
[331573394,1720528240632,-50752.4922965,0.0002733,3]
[331573395,1720528240642,-3000.0,0.0002734,2]
[331573396,1720528240652,-151.44589054,0.00027348,2]
[331573397,1720528240662,-3000.0,0.0002735,2]
[331573398,1720528240672,-3000.0,0.0002736,2]
[331573399,1720528240681,-3000.0,0.0002737,2]
[331573400,1720528240691,-3000.0,0.0002738,2]
[331573402,1720528240701,-3000.0,0.0002739,2]
[331573403,1720528240710,-500.0,0.00027397,2]
[331573404,1720528240720,-616.72093766,0.00027397,2]
[331573405,1720528240729,-500.0,0.00027397,2]
[331573406,1720528240738,-616.72093766,0.00027397,2]
[331573407,1720528240747,-616.72093766,0.00027397,2]
[331573408,1720528240758,-401.04584833,0.00027397,2]
[331573409,1720528240767,-616.72093766,0.00027397,2]
[331573410,1720528240777,-616.72093766,0.00027397,2]
[331573411,1720528240787,-616.72093766,0.00027397,2]
[331573412,1720528240797,-616.72093766,0.00027397,2]
[331573413,1720528240806,-616.72093766,0.00027397,2]
[331573414,1720528240816,-616.72093766,0.00027397,2]
[331573415,1720528240825,-616.72093766,0.00027397,2]
[331573416,1720528240834,-616.72093766,0.00027397,2]
[331573417,1720528240843,-616.72093766,0.00027397,2]
[331573418,1720528240852,-616.72093766,0.00027397,2]
[331573419,1720528240861,-616.72093766,0.00027397,2]
[331573420,1720528240870,-616.72093766,0.00027397,2]
[331573421,1720528240879,-616.72093766,0.00027397,2]
[331573422,1720528240888,-616.72093766,0.00027397,2]
[331573423,1720528240897,-616.72093766,0.00027397,2]
[331573424,1720528240906,-616.72093766,0.00027397,2]
[331573425,1720528240915,-616.72093766,0.00027397,2]
[331573426,1720528240924,-616.72093766,0.00027397,2]
[331573427,1720528240933,-616.72093766,0.00027397,2]
[331573428,1720528240946,-616.72093766,0.00027397,2]
[331573429,1720528240955,-616.72093766,0.00027397,2]
[331573430,1720528240964,-616.72093766,0.00027397,2]
[331573431,1720528240973,-616.72093766,0.00027397,2]
[331573432,1720528240983,-616.72093766,0.00027397,2]
[331573433,1720528240992,-616.72093766,0.00027397,2]
[331573434,1720528241002,-616.72093766,0.00027397,2]
[331573435,1720528241011,-616.72093766,0.00027397,2]
[331573436,1720528241021,-616.72093766,0.00027397,2]
[331573437,1720528241031,-616.72093766,0.00027397,2]
[331573438,1720528241042,-616.72093766,0.00027397,2]
[331573439,1720528241052,-616.72093766,0.00027397,2]
[331573440,1720528241061,-616.72093766,0.00027397,2]
[331573441,1720528241071,-616.72093766,0.00027397,2]
[331573442,1720528241079,-616.72093766,0.00027397,2]
[331573443,1720528241088,-616.72093766,0.00027397,2]
[331573444,1720528241097,-616.72093766,0.00027397,2]
[331573445,1720528241106,-616.72093766,0.00027397,2]
[331573446,1720528241115,-616.72093766,0.00027397,2]
[331573447,1720528241124,-616.72093766,0.00027397,2]
[331573448,1720528241135,-616.72093766,0.00027397,2]
[331573449,1720528241143,-616.72093766,0.00027397,2]
[331573450,1720528241153,-616.72093766,0.00027397,2]
[331573451,1720528241162,-616.72093766,0.00027397,2]
[331573452,1720528241171,-616.72093766,0.00027397,2]
[331573453,1720528241180,-616.72093766,0.00027397,2]
[331573454,1720528241190,-616.72093766,0.00027397,2]
[331573455,1720528241199,-616.72093766,0.00027397,2]
[331573456,1720528241208,-616.72093766,0.00027397,2]
[331573457,1720528241218,-616.72093766,0.00027397,2]
[331573458,1720528241227,-616.72093766,0.00027397,2]
[331573459,1720528241236,-616.72093766,0.00027397,2]
[331573460,1720528241245,-616.72093766,0.00027397,2]
[331573461,1720528241254,-616.72093766,0.00027397,2]
[331573462,1720528241261,-616.72093766,0.00027397,2]
[331573463,1720528241268,-191.0559141,0.00027397,120]
[331573464,1720528241338,-3000.0,0.000274,2]
[331573465,1720528241351,-3000.0,0.0002741,2]
[331573466,1720528241360,-3000.0,0.0002742,2]
[331573467,1720528241370,-3000.0,0.0002743,2]
[331573468,1720528241380,-3000.0,0.0002744,2]
[331573469,1720528241390,-3000.0,0.0002745,2]
[331573470,1720528241400,-3000.0,0.0002746,2]
[331573471,1720528241409,-3000.0,0.0002747,2]
[331573472,1720528241418,-3000.0,0.0002748,2]
[331573473,1720528241427,-3000.0,0.0002749,2]
[331573474,1720528241437,-50752.4922965,0.0002749,3]
[331573475,1720528241447,-3000.0,0.000275,2]
[331573476,1720528241456,-3000.0,0.0002751,2]
[331573477,1720528241465,-3000.0,0.0002752,2]
[331573478,1720528241475,-3000.0,0.0002753,2]
[331573479,1720528241486,-3000.0,0.0002754,2]
[331573480,1720528241495,-3027.51034,0.0002755,2]
[331573481,1720528241505,-172.42394717,0.00028,30]
[331573482,1720528241514,-503.74077903,0.00028,2]
[331573483,1720528241524,-1249.36455339,0.00028129,2]
[331573484,1720528241536,-3000.0,0.000291,2]
[331573485,1720528241546,-3000.0,0.0002911,2]
[331573486,1720528241555,-2168.00663551,0.00029115,2]
[331573487,1720528241565,-3000.0,0.0002912,2]
[331573488,1720528241575,-3000.0,0.0002913,2]
[331573489,1720528241584,-3000.0,0.0002914,2]
[331573490,1720528241594,-3000.0,0.0002915,2]
[331573491,1720528241603,-3000.0,0.0002916,2]
[331573492,1720528241612,-3000.0,0.0002917,2]
[331573493,1720528241622,-3000.0,0.0002918,2]
[331573494,1720528241631,-3000.0,0.0002919,2]
[331573495,1720528241641,-3000.0,0.000292,2]
[331573496,1720528241650,-3000.0,0.0002921,2]
[331573497,1720528241661,-3000.0,0.0002922,2]
[331573498,1720528241670,-3000.0,0.0002923,2]
[331573499,1720528241679,-3000.0,0.0002924,2]
[331573500,1720528241688,-3000.0,0.0002925,2]
[331573501,1720528241697,-3000.0,0.0002926,2]
[331573502,1720528241708,-3000.0,0.0002927,2]
[331573503,1720528241717,-3000.0,0.0002928,2]
[331573504,1720528241728,-3000.0,0.0002929,2]
[331573505,1720528241736,-19258.70698802,0.0002929,3]
[331573506,1720528241941,-26368.76856407,0.0002929,3]
[331573507,1720528241953,-3514.24961299,0.0002929,3]
[331573515,1720528243336,-462.065268,0.000255,2]
[331573516,1720528243345,-542.91908892,0.00026848,2]
[331573517,1720528243355,-361.6373675,0.00027397,2]
[331573518,1720528243364,-2003.49551442,0.0002929,3]
[331573573,1720528867831,3000.0,0.00015681,2]
[331573577,1720528931745,5909.47978922,0.00014998,2]
[331573579,1720528960491,217.72515829,0.00015681,2]
[331573580,1720528966576,796.539883,0.00015681,2]
[331573584,1720529122040,981.22062177,0.00014999,2]
[331573586,1720529159433,24900.0,0.00015681,2]
[331573587,1720529162058,674.1,0.00010959,2]
[331573588,1720529213381,500.0,0.00015681,2]
[331573590,1720529259058,696.50812903,0.00014999,2]
[331573591,1720529293339,1490.97796954,0.00014999,2]
[331573592,1720529296316,2975.6960057,0.00015376,2]
[331573593,1720529302562,8382.40578554,0.00014998,2]
[331573594,1720529306131,1500.0,0.00014999,2]
[331573595,1720529310638,1273.73479234,0.00014999,2]
[331573596,1720529310664,3467.37038478,0.00014999,2]
[331573599,1720529363174,-671.1312369,0.00015373,2]
[331573600,1720529363194,-3555.90526559,0.00016154,2]
[331573601,1720529363214,-300.0,0.00016244,2]
[331573602,1720529363233,-300.0,0.00016244,2]
[331573603,1720529363255,-305.51652255,0.00016244,2]
[331573604,1720529363277,-183.67330916,0.00016244,2]
[331573605,1720529363297,-165.72688332,0.00016244,2]
[331573606,1720529363318,-56619.7452263,0.00016245,2]
[331573607,1720529363337,-1000.0,0.00016253,10]
[331573608,1720529363360,-42248.84590217,0.00016254,2]
[331573609,1720529363379,-1000.0,0.00016254,10]
[331573610,1720529363398,-34947.26192643,0.00016255,2]
[331573611,1720529363419,-155.68352546,0.00016255,2]
[331573612,1720529363438,-21806.88768616,0.00016255,2]
[331573613,1720529363457,-934.93879927,0.00016255,2]
[331573614,1720529363477,-17258.59312702,0.00016255,2]
[331573615,1720529363495,-166.666666,0.00016438,2]
[331573616,1720529363515,-166.666666,0.00016823,2]
[331573617,1720529363534,-166.666666,0.00017208,2]
[331573618,1720529363555,-704.48483568,0.000175,2]
[331573619,1720529363574,-166.666666,0.00017592,2]
[331573620,1720529363593,-1982.49128326,0.000176,2]
[331573621,1720529363613,-420.0,0.00017756,2]
[331573622,1720529363699,-420.0,0.00017868,2]
[331573623,1720529363719,-166.666666,0.00017977,2]
[331573624,1720529363738,-940.77285821,0.0001818,2]
[331573625,1720529363760,-166.666666,0.00018362,2]
[331573626,1720529363780,-6871.59474067,0.000188,2]
[331573627,1720529363800,-3674.92768193,0.00018899,2]
[331573628,1720529363819,-7621.6025801,0.000189,2]
[331573629,1720529363839,-250.0,0.00019041,2]
[331573630,1720529363858,-185.78249617,0.000191,2]
[331573631,1720529363878,-2119.55983052,0.00019165,2]
[331573632,1720529363897,-162.9109564,0.00019178,2]
[331573633,1720529363918,-587.0,0.00019655,2]
[331573634,1720529363937,-702.872222,0.00021096,2]
[331573635,1720529363957,-6871.59474067,0.00021268,2]
[331573636,1720529363978,-823.0,0.00021621,2]
[331573637,1720529363998,-1065.65690458,0.00021917,2]
[331573638,1720529364019,-9345.65192558,0.00022932,3]
[331573761,1720529438416,-300.0,0.00022931,2]
[331573763,1720529438427,-47274.09330072,0.00022932,3]
[331573765,1720529438438,-154.62117811,0.00022932,2]
[331573767,1720529438449,-225.71833691,0.00022932,2]
[331573768,1720529438460,-1157.03571315,0.00022942,2]
[331573769,1720529438471,-301.75849603,0.00023,2]
[331573770,1720529438481,-191.0205147,0.00023353,2]
[331573771,1720529438492,-2219.16977418,0.00023453,2]
[331573772,1720529438512,-813.14107465,0.00023453,3]
[331573773,1720529438522,-796.539883,0.00023522,2]
[331573774,1720529438532,-6871.59474067,0.00023735,2]
[331573775,1720529438542,-7621.6025801,0.000239,2]
[331573776,1720529438553,-160.66266123,0.00024192,2]
[331573777,1720529438563,-420.0,0.00025224,2]
[331573778,1720529438653,-2407.14,0.00025481,3]
[331573779,1720529438664,-2005.95,0.00025481,3]
[331573780,1720529438675,-1671.63,0.00025481,3]
[331573781,1720529438685,-56619.7452263,0.00025491,3]
[331573782,1720529438696,-52136.2205257,0.00025501,2]
[331573783,1720529438706,-150.0,0.00025545,2]
[331573784,1720529438716,-206.63267818,0.000257,2]
[331573785,1720529438726,-158.23203514,0.00025869,2]
[331573786,1720529438735,-154.60575532,0.00025869,2]
[331573787,1720529438750,-250.0,0.00026093,2]
[331573788,1720529438759,-56619.7452263,0.00026166,3]
[331573789,1720529438768,-6871.59474067,0.00026203,2]
[331573790,1720529438778,-162.745202,0.0002633,2]
[331573791,1720529438787,-7458.94652043,0.0002649,2]
[331573792,1720529438797,-154.60575532,0.00026574,2]
[331573793,1720529438806,-2058.61750007,0.000266,2]
[331573794,1720529438815,-350.0,0.00026641,2]
[331573795,1720529438826,-1000.0,0.00027,27]
[331573796,1720529438835,-254.79065041,0.00027183,2]
[331573797,1720529438845,-216.34955881,0.00027183,2]
[331573798,1720529438854,-500.0,0.00027183,2]
[331573799,1720529438864,-500.0,0.00027183,2]
[331573800,1720529438874,-157.81250236,0.00027183,2]
[331573801,1720529438883,-502.57959442,0.00027183,2]
[331573802,1720529438892,-500.0,0.00027183,2]
[331573803,1720529438902,-500.0,0.00027183,2]
[331573804,1720529438912,-500.0,0.00027183,2]
[331573805,1720529438921,-500.0,0.00027183,2]
[331573806,1720529438930,-500.0,0.00027183,2]
[331573807,1720529438940,-500.0,0.00027183,2]
[331573808,1720529438949,-500.0,0.00027183,2]
[331573809,1720529438958,-500.0,0.00027183,2]
[331573810,1720529438968,-500.0,0.00027183,2]
[331573811,1720529438978,-566.24192175,0.00027183,2]
[331573812,1720529438988,-500.0,0.00027183,2]
[331573813,1720529439001,-500.0,0.00027183,2]
[331573814,1720529439010,-500.0,0.00027183,2]
[331573815,1720529439020,-500.0,0.00027183,2]
[331573816,1720529439029,-30000.0,0.00027184,2]
[331573817,1720529439038,-450.0,0.00027189,2]
[331573818,1720529439048,-702.872222,0.00027195,2]
[331573819,1720529439057,-3000.0,0.000273,2]
[331573820,1720529439066,-56619.7452263,0.000273,3]
[331573821,1720529439076,-3000.0,0.0002731,2]
[331573822,1720529439085,-3000.0,0.0002732,2]
[331573823,1720529439094,-3000.0,0.0002733,2]
[331573824,1720529439103,-3000.0,0.0002734,2]
[331573825,1720529439113,-3000.0,0.0002735,2]
[331573826,1720529439122,-3027.51034,0.0002736,2]
[331573827,1720529439132,-620.00126242,0.00027371,2]
[331573828,1720529439141,-500.0,0.00027397,2]
[331573829,1720529439150,-500.0,0.00027397,2]
[331573830,1720529439160,-500.0,0.00027397,2]
[331573831,1720529439169,-500.0,0.00027397,2]
[331573832,1720529439179,-500.0,0.00027397,2]
[331573833,1720529439189,-500.0,0.00027397,2]
[331573834,1720529439199,-500.0,0.00027397,2]
[331573835,1720529439208,-500.0,0.00027397,2]
[331573836,1720529439217,-500.0,0.00027397,2]
[331573837,1720529439227,-500.0,0.00027397,2]
[331573838,1720529439236,-500.0,0.00027397,2]
[331573839,1720529439250,-500.0,0.00027397,2]
[331573840,1720529439259,-500.0,0.00027397,2]
[331573841,1720529439270,-500.0,0.00027397,2]
[331573842,1720529439285,-500.0,0.00027397,2]
[331573843,1720529439294,-500.0,0.00027397,2]
[331573844,1720529439304,-500.0,0.00027397,2]
[331573845,1720529439314,-500.0,0.00027397,2]
[331573846,1720529439323,-500.0,0.00027397,2]
[331573847,1720529439333,-500.0,0.00027397,2]
[331573848,1720529439343,-500.0,0.00027397,2]
[331573849,1720529439353,-500.0,0.00027397,2]
[331573850,1720529439367,-500.0,0.00027397,2]
[331573851,1720529439377,-500.0,0.00027397,2]
[331573852,1720529439387,-500.0,0.00027397,2]
[331573853,1720529439396,-500.0,0.00027397,2]
[331573854,1720529439406,-500.0,0.00027397,2]
[331573855,1720529439416,-500.0,0.00027397,2]
[331573856,1720529439426,-500.0,0.00027397,2]
[331573857,1720529439436,-500.0,0.00027397,2]
[331573858,1720529439446,-500.0,0.00027397,2]
[331573859,1720529439456,-500.0,0.00027397,2]
[331573860,1720529439465,-500.0,0.00027397,2]
[331573861,1720529439474,-500.0,0.00027397,2]
[331573862,1720529439484,-500.0,0.00027397,2]
[331573863,1720529439496,-500.0,0.00027397,2]
[331573864,1720529439506,-500.0,0.00027397,2]
[331573865,1720529439515,-500.0,0.00027397,2]
[331573866,1720529439524,-500.0,0.00027397,2]
[331573867,1720529439532,-500.0,0.00027397,2]
[331573868,1720529439543,-500.0,0.00027397,2]
[331573869,1720529439552,-500.0,0.00027397,2]
[331573870,1720529439562,-500.0,0.00027397,2]
[331573871,1720529439572,-500.0,0.00027397,2]
[331573872,1720529439581,-500.0,0.00027397,2]
[331573873,1720529439590,-367.1002876,0.00027397,2]
[331573874,1720529439599,-56619.7452263,0.0002749,3]
[331573875,1720529439608,-43657.05388,0.000275,2]
[331573876,1720529439617,-550.0,0.00027737,2]
[331573877,1720529439626,-587.0,0.00027746,2]
[331573878,1720529439635,-1086.03768397,0.00027796,2]
[331573879,1720529439644,-17258.59312702,0.00027796,2]
[331573880,1720529439654,-57244.60275606,0.00027796,2]
[331573881,1720529439663,-34947.26192643,0.00027796,2]
[331573882,1720529439673,-42248.84590217,0.00027796,2]
[331573883,1720529439682,-1328.65900423,0.000279,2]
[331573884,1720529439692,-31473.42748963,0.0002799,2]
[331573885,1720529439701,-151.0,0.0002799,7]
[331573886,1720529439710,-172.42394717,0.00028,30]
[331573887,1720529439719,-200.70554428,0.00028,2]
[331573888,1720529439728,-650.0,0.00028285,2]
[331573889,1720529439738,-798.33156433,0.000285,2]
[331573890,1720529439750,-6871.59474067,0.0002867,2]
[331573891,1720529439759,-620.00006312,0.0002874,2]
[331573892,1720529439768,-306.0,0.00028767,2]
[331573893,1720529439777,-136542.32599327,0.0002877,2]
[331573913,1720529441419,-17258.59312702,0.00027796,2]
[331573914,1720529441429,-53419.46614605,0.0002877,2]
[331573915,1720529441439,-151.0,0.0002877,7]
[331573916,1720529441451,-151.0,0.0002877,7]
[331573917,1720529441460,-290.926158,0.0002877,7]
[331573918,1720529441469,-151.0,0.0002877,7]
[331573919,1720529441478,-151.0,0.0002877,7]
[331573920,1720529441488,-151.0,0.0002877,7]
[331573921,1720529441498,-151.0,0.0002877,7]
[331573922,1720529441507,-151.0,0.0002877,7]
[331573923,1720529441518,-151.0,0.0002877,7]
[331573924,1720529441528,-206.908913,0.0002877,2]
[331573925,1720529441537,-206.908913,0.0002877,2]
[331573926,1720529441546,-151.0,0.0002877,7]
[331573927,1720529441555,-150.0,0.00028819,2]
[331573928,1720529441566,-750.0,0.00028833,2]
[331573929,1720529441574,-5292.21400908,0.00028853,2]
[331573930,1720529441583,-7621.6025801,0.000289,2]
[331573931,1720529441594,-366.61198732,0.00028987,2]
[331573932,1720529441603,-1000.0,0.00029,29]
[331573933,1720529441612,-849.30884963,0.00029,2]
[331573934,1720529441623,-3000.0,0.000291,2]
[331573935,1720529441634,-3000.0,0.0002911,2]
[331573936,1720529441643,-3000.0,0.0002912,2]
[331573937,1720529441653,-3000.0,0.0002913,2]
[331573938,1720529441662,-608.21255992,0.0002914,2]
[331573972,1720529443382,-1440.025,0.0002914,2]
[331574050,1720530114073,3000.0,0.00015028,2]
[331574066,1720530328324,206.70327759,0.00014999,2]
[331574068,1720530354101,182.7181389,0.00014999,2]
[331574071,1720530364204,202.00340084,0.00014999,2]
[331574073,1720530372793,155.04373045,0.00014999,2]
[331574076,1720530415461,195.36743126,0.00014999,2]
[331574079,1720530444270,-1410.1556778,0.00015175,2]
[331574080,1720530444293,-300.0,0.00015659,2]
[331574081,1720530444323,-24900.0,0.0001566,2]
[331574082,1720530444344,-191.0205147,0.00016055,2]
[331574083,1720530444365,-3154.80039091,0.00016144,2]
[331574084,1720530444386,-5068.90488245,0.00016154,2]
[331574085,1720530444407,-500.0,0.00016234,2]
[331574086,1720530444429,-500.0,0.00016234,2]
[331574087,1720530444449,-500.0,0.00016234,2]
[331574088,1720530444469,-500.0,0.00016234,2]
[331574089,1720530444489,-202.93889691,0.00016234,2]
[331574090,1720530444509,-500.0,0.00016234,2]
[331574091,1720530444530,-166.03746615,0.00016234,2]
[331574092,1720530444551,-165.72688332,0.00016234,2]
[331574093,1720530444574,-305.51652255,0.00016234,2]
[331574094,1720530444594,-183.67330916,0.00016234,2]
[331574095,1720530444618,-23552.92389987,0.00016235,2]
[331574100,1720530509077,182.50811374,0.00014999,2]
[331574102,1720530514382,-892.40957244,0.00016155,2]
[331574103,1720530514493,-892.40957244,0.00016155,2]
[331574104,1720530514530,-892.40957244,0.00016155,2]
[331574106,1720530539412,-945.95414679,0.00015244,2]
[331574107,1720530539472,-945.95414679,0.00015244,2]
[331574108,1720530539524,-945.95414679,0.00015244,2]
[331574111,1720530557175,-300.0,0.00015243,2]
[331574112,1720530557195,-300.0,0.00015243,2]
[331574113,1720530557220,-22062.13755963,0.00015244,2]
[331574114,1720530557243,-1377.89518864,0.00016155,2]
[331574115,1720530557262,-240.67082957,0.00016243,2]
[331574116,1720530557281,-79715.1517103,0.00016244,2]
[331574117,1720530557302,-1000.0,0.00016244,10]
[331574118,1720530557324,-90.91304362,0.00016244,10]
[331574119,1720530561349,-909.08695638,0.00016244,10]
[331574120,1720530561370,-1000.0,0.00016244,10]
[331574121,1720530561409,-112695.14101755,0.00016245,2]
[331574122,1720530564128,-19701.01188,0.00016245,2]
[331574123,1720530564256,-1002.7113956,0.00016245,2]
[331574124,1720530564314,-1002.7113956,0.00016245,2]
[331574125,1720530564373,-315.75644413,0.00016245,2]
[331574127,1720530578191,1229.95449669,0.00015,2]
[331574141,1720530632362,-500.0,0.00016243,2]
[331574142,1720530632372,-252.04573773,0.00016243,2]
[331574143,1720530632382,-300.0,0.00016244,2]
[331574144,1720530632392,-248.95426227,0.00016245,2]
[331574146,1720530632856,-3492.01210966,0.00016245,2]
[331574216,1720530638620,-20972.00491619,0.00016245,2]
[331574218,1720530638630,-1000.0,0.00016253,10]
[331574219,1720530638640,-1000.0,0.00016253,10]
[331574220,1720530638662,-57244.60275606,0.00016254,2]
[331574221,1720530638675,-1011.4506018,0.00016254,10]
[331574222,1720530638685,-34947.26192643,0.00016255,2]
[331574223,1720530638695,-17258.59312702,0.00016255,2]
[331574224,1720530638706,-42248.84590217,0.00016255,2]
[331574225,1720530638716,-155.41745781,0.00016255,2]
[331574227,1720530638728,-166.666666,0.00016438,2]
[331574229,1720530638739,-166.666666,0.00016823,2]
[331574230,1720530638749,-166.666666,0.00017208,2]
[331574231,1720530638759,-166.666666,0.00017592,2]
[331574232,1720530638768,-420.0,0.00017868,2]
[331574233,1720530638778,-166.666666,0.00017977,2]
[331574234,1720530638788,-79715.1517103,0.0001798,2]
[331574235,1720530638799,-1040.95683172,0.00018,2]
[331574236,1720530638809,-204.96923908,0.00018,2]
[331574237,1720530638819,-1110.9809191,0.00018182,2]
[331574238,1720530638829,-166.666666,0.00018362,2]
[331574239,1720530638840,-6650.02819089,0.000189,2]
[331574240,1720530638850,-813.14107465,0.00019039,3]
[331574241,1720530638860,-250.0,0.00019041,2]
[331574242,1720530638870,-154.60575532,0.00019069,2]
[331574243,1720530638880,-156.28518027,0.00019165,2]
[331574244,1720530638889,-154.60575532,0.00019165,2]
[331574245,1720530639007,-154.88383712,0.00019165,2]
[331574246,1720530639018,-162.757007,0.00019178,2]
[331574247,1720530639028,-440.8903542,0.00019178,4]
[331574248,1720530639039,-587.0,0.00019655,2]
[331574249,1720530639048,-4055.12390594,0.00020749,2]
[331574250,1720530639058,-175.718057,0.00021096,2]
[331574251,1720530639068,-632.584999,0.00021096,2]
[331574252,1720530639078,-823.0,0.00021621,2]
[331574253,1720530639088,-1065.65690458,0.00021917,2]
[331574254,1720530639098,-500.0,0.00022499,2]
[331574255,1720530639108,-263.41836941,0.00022499,2]
[331574256,1720530639118,-581.78366056,0.00022499,2]
[331574257,1720530639128,-340.92545006,0.00022499,2]
[331574258,1720530639138,-216.34955881,0.00022499,2]
[331574259,1720530639148,-500.0,0.00022499,2]
[331574260,1720530639157,-500.0,0.00022499,2]
[331574261,1720530639167,-500.0,0.00022499,2]
[331574262,1720530639176,-476.24033483,0.00022499,2]
[331574263,1720530639187,-258.91881873,0.00022499,2]
[331574264,1720530639196,-500.0,0.00022499,2]
[331574265,1720530639209,-500.0,0.00022499,2]
[331574266,1720530639219,-263.79052375,0.00022499,2]
[331574267,1720530639229,-500.0,0.00022499,2]
[331574268,1720530639239,-500.0,0.00022499,2]
[331574269,1720530639248,-500.0,0.00022499,2]
[331574270,1720530639257,-500.0,0.00022499,2]
[331574271,1720530639267,-200.0,0.00022499,2]
[331574272,1720530639277,-500.0,0.00022499,2]
[331574273,1720530639287,-160.66266123,0.000225,2]
[331574274,1720530639296,-1689.28232067,0.00022942,2]
[331574275,1720530639305,-286.926286,0.00022964,2]
[331574276,1720530639315,-150.0,0.00022967,2]
[331574277,1720530639324,-162.802639,0.00023312,2]
[331574278,1720530639333,-250.0,0.00023515,2]
[331574279,1720530639343,-461.7864594,0.0002368,2]
[331574280,1720530639352,-6650.02819089,0.000239,2]
[331574281,1720530639363,-278.28018874,0.00024,2]
[331574282,1720530639372,-350.0,0.00024063,2]
[331574283,1720530639382,-450.0,0.00024611,2]
[331574284,1720530639391,-550.0,0.00025158,2]